bitfinex-derivatives/quotes_SOLF0:USTF0_20220106
["timestamp","ask_amount","ask_price","bid_price","bid_amount"]
[1641443120050,37.90415695,148.89,148.82,4.0]
[1641443120251,37.90415695,148.89,148.82,10.489]
[1641443120651,37.90415695,148.91,148.82,10.489]
[1641443120851,37.90415695,148.91,148.84,27.66479]
[1641443122156,37.90415695,148.91,148.85,4.0]
[1641443122351,37.90415695,148.91,148.85,5.574]
[1641443122554,37.90415695,148.91,148.86,4.0]
[1641443122753,37.90415695,148.91,148.9,55.32958]
[1641443122957,37.90415695,148.91,148.9,61.06458]
[1641443123154,37.90415695,148.94,148.9,5.735]
[1641443124354,37.90415695,148.94,148.84,4.0]
[1641443124756,37.90415695,148.93,148.86,32.41127923]
[1641443125658,4.7462274,148.87,148.86,32.41127923]
[1641443125857,37.90415695,148.94,148.86,36.41127923]
[1641443126057,37.90415695,148.94,148.87,4.0]
[1641443126256,37.90415695,148.94,148.9,4.0]
[1641443126456,37.90415695,148.94,148.9,8.365]
[1641443126657,37.90415695,148.94,148.9,4.365]
[1641443126957,5.695e-05,148.94,148.93,4.0]
[1641443127157,5.695e-05,148.94,148.93,10.843]
[1641443127358,5.695e-05,148.94,148.93,6.843]
[1641443127758,84.69983543,149.03,148.93,6.843]
[1641443127961,57.03504543,149.03,148.95,4.0]
[1641443128159,57.03504543,149.03,148.93,6.843]
[1641443128361,57.03504543,149.03,148.93,10.843]
[1641443128658,57.03504543,149.03,148.96,4.0]
[1641443128859,57.03504543,149.03,149.0,27.66479]
[1641443129060,57.03504543,149.03,149.0,33.39879]
[1641443129261,57.03504543,149.03,149.02,4.0]
[1641443129463,57.03504543,149.05,149.02,4.0]
[1641443129664,57.03504543,149.05,149.0,33.39879]
[1641443130765,84.69983543,149.1,149.0,33.39879]
[1641443130963,91.40314687,149.1,149.0,27.66479]
[1641443131265,6.70465974,149.07,148.95,81.30708219]
[1641443131463,11.14565974,149.07,148.95,81.30708219]
[1641443131965,68.18070517,149.07,148.97,4.0]
[1641443132167,61.47604543,149.07,148.95,67.0684]
[1641443132366,61.47604543,149.07,148.98,4.0]
[1641443132565,61.47604543,149.07,148.98,4.427]
[1641443132770,4.441,149.07,148.99,4.0]
[1641443132965,57.03504543,149.08,149.02,27.66479]
[1641443133166,57.03504543,149.08,149.02,33.44979]
[1641443133666,84.69983543,149.1,149.02,33.44979]
[1641443134767,84.69983543,149.1,149.02,37.44979]
[1641443134967,84.69983543,149.1,149.03,4.0]
[1641443135171,84.69983543,149.1,149.05,4.0]
[1641443135768,27.66479,149.1,149.05,4.0]
[1641443137869,12.30788362,149.09,149.05,4.0]
[1641443138369,12.30788362,149.09,149.06,4.0]
[1641443138571,12.30788362,149.09,149.06,8.266]
[1641443139871,12.30788362,149.09,149.06,4.0]
[1641443140071,12.30788362,149.09,149.05,4.0]
[1641443140273,12.30788362,149.09,149.02,27.66479]
[1641443140471,12.30788362,149.09,149.04,4.0]
[1641443141672,12.30788362,149.09,149.04,9.81]
[1641443141876,12.30788362,149.09,149.05,4.0]
[1641443142074,12.30788362,149.09,149.06,4.0]
[1641443142474,57.03504543,149.11,149.06,4.0]
[1641443142878,86.78934389,149.14,149.07,4.0]
[1641443143078,86.78934389,149.14,149.07,36.05379]
[1641443144078,86.78934389,149.14,149.07,32.05379]
[1641443144480,74.48454948,149.14,149.07,36.05379]
[1641443144679,57.03504543,149.15,149.07,32.05379]
[1641443145881,6.7017391,149.13,149.07,4.389]
[1641443146081,6.7017391,149.13,149.02,27.66479]
[1641443146284,4.0,149.11,149.02,27.66479]
[1641443146482,9.915,149.11,149.02,27.66479]
[1641443147683,5.915,149.11,149.02,27.66479]
[1641443147883,84.69983543,149.12,149.02,27.66479]
[1641443148183,37.93783562,149.06,149.02,27.66479]
[1641443148985,37.93783562,149.05,149.02,27.66479]
[1641443149386,37.93783562,149.05,149.03,4.0]
[1641443149588,57.03504543,149.1,149.04,4.0]
[1641443149787,57.03504543,149.1,149.05,4.0]
[1641443149987,57.03504543,149.1,149.05,10.659]
[1641443150190,57.03504543,149.1,149.05,6.659]
[1641443150390,57.03504543,149.15,149.07,4.0]
[1641443150987,57.03504543,149.15,149.08,4.0]
[1641443151190,57.03504543,149.15,149.08,32.75779]
[1641443151588,57.03504543,149.15,149.1,4.0]
[1641443151787,57.03504543,149.15,149.12,4.0]
[1641443152389,74.48454948,149.19,149.11,4.552]
[1641443152589,74.48454948,149.19,149.13,4.0]
[1641443152789,74.48454948,149.19,149.11,4.552]
[1641443152991,74.48454948,149.19,149.13,4.0]
[1641443153190,74.48454948,149.19,149.13,31.66479]
[1641443153489,57.03504543,149.2,149.15,4.0]
[1641443153692,57.03504543,149.2,149.15,4.327]
[1641443154094,57.03504543,149.2,149.16,4.0]
[1641443154891,57.03504543,149.21,149.16,4.0]
[1641443155892,27.66479,149.22,149.15,6.795]
[1641443155893,57.03504543,149.22,149.17,4.0]
[1641443156497,57.03504543,149.22,149.16,4.0]
[1641443156699,57.03504543,149.22,149.15,6.795]
[1641443156896,57.03504543,149.22,149.18,20.0]
[1641443157096,57.03504543,149.22,149.2,27.66479]
[1641443157296,57.03504543,149.25,149.2,27.66479]
[1641443158298,4.0,149.24,149.2,27.66479]
[1641443158498,3.42035904,149.24,149.2,27.66479]
[1641443158698,4.0,149.21,149.13,41.90347219]
[1641443158898,6.305,149.21,149.13,41.90347219]
[1641443159301,6.305,149.21,149.17,27.66479]
[1641443159699,6.305,149.21,149.13,41.90347219]
[1641443159898,4.0,149.17,149.09,81.12948219]
[1641443160103,4.0,149.16,149.09,81.12948219]
[1641443160300,5.915,149.17,149.09,14.23868219]
[1641443160499,4.0,149.15,149.09,14.23868219]
[1641443160701,5.915,149.17,149.09,14.23868219]
[1641443160901,4.0,149.15,149.07,1.31566553]
[1641443161105,3.42035904,149.16,149.07,1.31566553]
[1641443161400,4.0,149.14,149.09,27.66479]
[1641443161602,5.662,149.14,149.09,27.66479]
[1641443162301,4.0,149.1,149.07,28.98045553]
[1641443162503,4.0,149.08,149.07,1.31566553]
[1641443162702,4.0,149.08,149.04,14.23868219]
[1641443162901,4.0,149.06,149.02,14.23868219]
[1641443163101,9.047,149.06,149.02,14.23868219]
[1641443163701,5.047,149.06,149.02,14.23868219]
[1641443163904,3.42035904,149.05,149.01,27.66479]
[1641443164113,3.42035904,149.05,148.99,27.66479]
[1641443164302,4.0,149.01,148.98,14.23868219]
[1641443164501,4.0,149.0,148.98,14.23868219]
[1641443164703,4.0,148.99,148.98,14.23868219]
[1641443165108,4.0,148.99,148.95,14.23868219]
[1641443165604,5.88,149.01,148.95,14.23868219]
[1641443165803,3.42035904,149.05,148.95,14.23868219]
[1641443166004,7.42035904,149.05,148.95,45.08387045]
[1641443166204,3.42035904,149.05,148.95,45.08387045]
[1641443166606,3.42035904,149.0,148.95,30.84518826]
[1641443167408,3.42035904,149.0,148.99,27.66479]
[1641443167607,3.42035904,149.0,148.99,33.65979]
[1641443167808,3.42035904,149.03,148.99,33.65979]
[1641443168407,5.904e-05,149.03,148.99,53.65979]
[1641443168609,3.42664922,149.05,149.0,1.31483847]
[1641443168808,3.42664922,149.05,149.01,6.69971861]
[1641443169409,3.42664922,149.05,149.04,27.66479]
[1641443169611,12.29286313,149.1,149.04,53.74879]
[1641443169811,12.29286313,149.11,149.04,53.74879]
[1641443170015,12.29286313,149.11,149.05,6.69769934]
[1641443170611,37.91563863,149.15,149.07,20.0]
[1641443170812,37.91563863,149.15,149.07,25.294]
[1641443171017,37.91563863,149.15,149.1,20.0]
[1641443171212,57.03504543,149.19,149.1,26.154]
[1641443171412,57.03504543,149.19,149.18,55.32958]
[1641443171616,57.03504543,149.19,149.18,60.70258]
[1641443171815,56.41504543,149.19,149.18,60.70258]
[1641443172215,29.67291605,149.2,149.18,60.70258]
[1641443173217,4.0,149.26,149.18,60.70258]
[1641443173414,4.0,149.26,149.23,27.66479]
[1641443174216,4.0,149.27,149.23,27.66479]
[1641443174418,4.0,149.29,149.23,27.66479]
[1641443174616,4.0,149.3,149.23,27.66479]
[1641443175418,4.0,149.29,149.23,55.32958]
[1641443176118,4.0,149.28,149.23,55.32958]
[1641443176319,4.0,149.25,149.23,55.32958]
[1641443176518,4.0,149.24,149.23,55.32958]
[1641443176920,4.0,149.26,149.23,55.32958]
[1641443177120,4.0,149.32,149.23,55.32958]
[1641443177320,4.0,149.26,149.23,55.32958]
[1641443177521,4.0,149.29,149.23,55.32958]
[1641443177720,4.0,149.29,149.23,59.61758]
[1641443178521,4.0,149.24,149.23,4.288]
[1641443178722,8.556,149.24,149.17,14.23868219]
[1641443178923,4.0,149.23,149.17,14.23868219]
[1641443179522,4.556,149.24,149.2,27.66479]
[1641443179722,8.556,149.24,149.18,27.66479]
[1641443179921,4.0,149.2,149.12,14.23868219]
[1641443180123,4.0,149.17,149.12,14.23868219]
[1641443180321,5.168,149.17,149.1,14.23868219]
[1641443180521,9.168,149.17,149.1,14.23868219]
[1641443181221,4.0,149.23,149.1,14.23868219]
[1641443181424,4.0,149.19,149.1,6.888]
[1641443181623,4.0,149.19,149.14,27.66479]
[1641443181822,4.0,149.18,149.14,31.84079]
[1641443182024,4.0,149.2,149.14,31.84079]
[1641443182222,67.9737,149.25,149.14,31.84079]
[1641443182422,4.0,149.22,149.14,31.84079]
[1641443182824,4.0,149.23,149.14,31.84079]
[1641443183023,4.0,149.23,149.15,20.0]
[1641443183626,124.83501721,149.27,149.22,27.66479]
[1641443183825,4.0,149.26,149.22,34.01579]
[1641443184024,56.84591721,149.27,149.22,34.01579]
[1641443184225,73.41146445,149.31,149.22,34.01579]
[1641443184226,4.0,149.26,149.22,34.01579]
[1641443184429,4.0,149.28,149.22,34.01579]
[1641443184629,56.84591721,149.29,149.22,34.01579]
[1641443185229,56.84591721,149.32,149.22,34.01579]
[1641443185429,4.0,149.3,149.22,34.01579]
[1641443185629,56.84591721,149.32,149.27,27.66479]
[1641443186230,60.84591721,149.35,149.27,27.66479]
[1641443186430,56.84591721,149.35,149.27,27.66479]
[1641443187331,4.0,149.33,149.27,27.66479]
[1641443187534,4.0,149.34,149.27,27.66479]
[1641443187732,4.0,149.32,149.27,32.39878947]
[1641443187931,4.0,149.31,149.27,32.39878947]
[1641443188230,4.0,149.35,149.27,32.39878947]
[1641443188431,4.0,149.35,149.27,38.05278947]
[1641443188730,56.84591721,149.38,149.27,38.05278947]
[1641443188933,56.84591721,149.35,149.28,20.0]
[1641443189633,56.84591721,149.35,149.34,55.32958]
[1641443189832,168.64488233,149.39,149.34,60.23758]
[1641443190038,4.0,149.37,149.34,60.23758]
[1641443190431,74.1849686,149.39,149.34,60.23758]
[1641443190632,4.0,149.38,149.34,60.23758]
[1641443190934,74.1849686,149.39,149.34,60.23758]
[1641443191232,56.84591721,149.4,149.34,60.23758]
[1641443191634,56.84591721,149.4,149.39,27.66479]
[1641443192434,60.84591721,149.43,149.39,27.66479]
[1641443193636,56.84591721,149.44,149.39,16.31064722]
[1641443194036,4.0,149.4,149.39,16.31064722]
[1641443194435,4.0,149.4,149.33,4.73399947]
[1641443194641,4.0,149.34,149.33,4.73399947]
[1641443195942,4.0,149.34,149.27,27.66479]
[1641443196141,4.0,149.32,149.27,27.66479]
[1641443198042,4.0,149.28,149.26,4.73399947]
[1641443198242,4.0,149.32,149.26,4.73399947]
[1641443198443,4.0,149.28,149.26,4.73399947]
[1641443198643,4.0,149.28,149.23,4.73399947]
[1641443199046,4.0,149.24,149.23,4.73399947]
[1641443199243,4.0,149.24,149.2,14.23868219]
[1641443199443,4.0,149.21,149.18,14.23868219]
[1641443199644,4.0,149.19,149.18,14.23868219]
[1641443200146,4.0,149.21,149.18,14.23868219]
[1641443200344,4.0,149.23,149.18,34.23868219]
[1641443200546,62.5325,149.31,149.18,34.23868219]
[1641443200746,4.0,149.29,149.21,20.0]
[1641443201046,56.84591721,149.28,149.21,20.0]
[1641443201447,56.84591721,149.28,149.24,20.0]
[1641443201846,56.84591721,149.28,149.27,55.32958]
[1641443202046,175.99483454,149.37,149.27,55.32958]
[1641443202249,4.0,149.33,149.27,55.32958]
[1641443202648,4.0,149.32,149.27,55.32958]
[1641443203447,4.0,149.36,149.27,55.32958]
[1641443203648,4.0,149.31,149.27,55.32958]
[1641443203848,4.0,149.3,149.27,27.66479]
[1641443204349,4.0,149.34,149.27,27.66479]
[1641443204949,4.0,149.28,149.27,27.66479]
[1641443205155,4.0,149.28,149.23,41.90347219]
[1641443205352,4.0,149.25,149.23,41.90347219]
[1641443206151,4.0,149.32,149.23,41.90347219]
[1641443206354,4.0,149.27,149.23,27.66479]
[1641443207053,4.0,149.24,149.23,27.66479]
[1641443207357,4.0,149.24,149.22,14.23868219]
[1641443208153,4.0,149.23,149.2,14.23868219]
[1641443208355,27.66479,149.31,149.2,14.23868219]
[1641443208356,41.87827996,149.3,149.2,20.91905093]
[1641443208853,4.0,149.21,149.2,20.91905093]
[1641443209053,4.0,149.21,149.2,14.23868219]
[1641443209256,4.0,149.21,149.2,1.32142057]
[1641443209453,4.0,149.22,149.2,1.32142057]
[1641443209653,4.0,149.21,149.2,1.32142057]
[1641443210056,4.0,149.21,149.19,14.23868219]
[1641443210255,4.0,149.2,149.19,14.23868219]
[1641443211058,4.0,149.2,149.18,14.23868219]
[1641443211258,4.0,149.19,149.18,14.23868219]
[1641443211760,4.0,149.19,149.18,8.219e-05]
[1641443211957,4.0,149.19,149.11,27.66479]
[1641443212160,4.0,149.13,149.11,27.66479]
[1641443212658,4.0,149.18,149.11,27.66479]
[1641443212860,4.0,149.12,149.11,27.66479]
[1641443213259,4.0,149.12,149.06,6.69725078]
[1641443213460,4.0,149.14,149.03,63.54473822]
[1641443213659,4.0,149.08,149.03,63.54473822]
[1641443213860,7.119,149.11,149.06,27.66479]
[1641443214062,4.0,149.18,149.06,27.66479]
[1641443214261,4.0,149.14,149.06,27.66479]
[1641443214960,37.87827996,149.17,149.07,20.0]
[1641443215162,37.87827996,149.17,149.09,6.69612964]
[1641443215364,16.24482487,149.19,149.13,6.69433659]
[1641443215561,12.24482487,149.19,149.13,6.69433659]
[1641443215760,12.24482487,149.19,149.15,27.66479]
[1641443216062,41.87827996,149.2,149.16,20.0]
[1641443216063,37.87827996,149.2,149.16,20.0]
[1641443216266,37.87827996,149.2,149.17,6.69254451]
[1641443216464,37.87827996,149.24,149.17,6.69254451]
[1641443216662,4.0,149.2,149.17,6.69254451]
[1641443217263,37.87827996,149.24,149.15,34.35800643]
[1641443217463,4.0,149.19,149.15,27.66479]
[1641443217864,4.382,149.22,149.15,27.66479]
[1641443218064,4.0,149.2,149.15,27.66479]
[1641443218465,4.0,149.21,149.15,27.66479]
[1641443218963,4.0,149.25,149.15,27.66479]
[1641443219165,4.0,149.18,149.15,27.66479]
[1641443219966,4.0,149.16,149.15,27.66479]
[1641443220170,4.0,149.16,149.13,27.66479]
[1641443220371,5.738,149.19,149.13,27.66479]
[1641443220566,4.0,149.16,149.13,27.66479]
[1641443221371,6.675,149.22,149.13,27.66479]
[1641443221567,10.675,149.22,149.13,27.66479]
[1641443221768,4.0,149.18,149.13,27.66479]
[1641443221969,37.87827996,149.23,149.13,27.66479]
[1641443222168,4.0,149.2,149.13,47.66479]
[1641443222369,4.0,149.2,149.15,20.0]
[1641443222871,4.0,149.2,149.18,20.0]
[1641443223271,37.87827996,149.23,149.19,20.0]
[1641443223873,37.87827996,149.23,149.21,27.66479]
[1641443224075,106.14817996,149.29,149.21,27.66479]
[1641443224272,37.87827996,149.29,149.21,27.66479]
[1641443224472,37.87827996,149.29,149.23,20.0]
[1641443224673,37.87827996,149.29,149.23,31.27585818]
[1641443225073,133.1177,149.35,149.25,20.0]
[1641443225074,41.87827996,149.31,149.25,20.0]
[1641443225672,4.0,149.29,149.28,20.0]
[1641443225874,4.0,149.29,149.28,75.32958]
[1641443226074,37.87827996,149.31,149.28,79.32948]
[1641443226275,37.87827996,149.33,149.28,79.32948]
[1641443226473,37.87827996,149.33,149.3,3.9999]
[1641443226675,37.87827996,149.33,149.31,23.9999]
[1641443227074,37.87827996,149.33,149.32,3.9999]
[1641443227475,37.87827996,149.36,149.32,3.9999]
[1641443227675,37.87827996,149.36,149.33,3.9999]
[1641443227874,37.87827996,149.36,149.35,27.66479]
[1641443228478,37.87827996,149.37,149.35,27.66479]
[1641443229076,37.87827996,149.37,149.35,31.66469]
[1641443229277,37.87827996,149.39,149.35,27.66479]
[1641443230877,37.87827996,149.39,149.33,27.66479]
[1641443231078,4.0,149.37,149.28,6.6873976]
[1641443231378,37.87827996,149.37,149.28,6.6873976]
[1641443231979,41.87827996,149.37,149.26,91.22459]
[1641443232180,41.87827996,149.37,149.26,27.66479]
[1641443232581,4.0,149.32,149.26,27.66479]
[1641443232781,10.188,149.32,149.26,27.66479]
[1641443232981,4.0,149.3,149.26,27.66479]
[1641443233183,4.0,149.32,149.19,135.48854882]
[1641443233381,10.389,149.32,149.19,69.19444882]
[1641443233582,41.87827996,149.31,149.19,62.5028]
[1641443233984,41.87827996,149.31,149.2,27.66479]
[1641443234183,4.0,149.28,149.2,27.66479]
[1641443234384,9.799,149.28,149.18,34.35688663]
[1641443234582,4.0,149.27,149.18,34.35688663]
[1641443234783,9.799,149.28,149.18,34.35688663]
[1641443234983,9.799,149.28,149.18,27.66479]
[1641443235387,5.799,149.28,149.19,3.9999]
[1641443235588,37.87827996,149.29,149.19,3.9999]
[1641443235889,37.87827996,149.28,149.18,86.02135272]
[1641443236487,37.87827996,149.28,149.18,82.02145272]
[1641443236689,37.87827996,149.28,149.18,55.32958]
[1641443237091,4.462,149.29,149.19,6.67977536]
[1641443237388,8.462,149.29,149.19,6.67977536]
[1641443237789,8.462,149.29,149.18,55.32958]
[1641443238091,4.0,149.26,149.18,55.32958]
[1641443238288,9.952,149.26,149.15,6.69344043]
[1641443238492,4.0,149.25,149.11,63.5411502]
[1641443238693,5.952,149.26,149.11,63.5411502]
[1641443238694,6.69680228,149.24,149.11,56.84591721]
[1641443238891,6.69680228,149.24,149.15,6.6799242]
[1641443239097,4.0,149.19,149.15,6.6799242]
[1641443239290,9.039,149.19,149.15,6.6799242]
[1641443239595,5.039,149.19,149.15,6.6799242]
[1641443239795,4.0,149.16,149.15,2.42e-05]
[1641443239994,5.73,149.16,149.08,11.06774364]
[1641443240395,4.0,149.12,149.08,11.06774364]
[1641443240594,8.926,149.12,149.08,11.06774364]
[1641443240997,8.926,149.12,149.08,11.06771944]
[1641443241197,4.926,149.12,149.05,11.06771944]
[1641443241394,4.4687158,149.12,149.05,11.06771944]
[1641443241895,5.73,149.16,149.05,11.06771944]
[1641443241896,41.87827996,149.18,149.07,27.66479]
[1641443242295,32.32579,149.22,149.07,27.66479]
[1641443242296,4.0,149.15,149.07,27.66479]
[1641443242496,4.0,149.13,149.07,27.66479]
[1641443242899,4.0,149.12,149.07,27.66479]
[1641443243198,5.214,149.12,149.07,14.21661144]
[1641443243996,4.0,149.09,149.07,14.21661144]
[1641443244197,4.0,149.08,149.04,27.66479]
[1641443244398,5.675,149.09,149.02,27.66479]
[1641443245300,4.0,149.14,149.02,23.9999]
[1641443245500,72.8332,149.15,149.0,6.7001675]
[1641443245700,4.0,149.14,149.0,6.7001675]
[1641443245902,4.0,149.14,149.0,34.3649575]
[1641443246106,37.87827996,149.13,149.0,34.3649575]
[1641443246306,41.87827996,149.13,149.0,34.3649575]
[1641443246806,4.0,149.11,149.0,27.66479]
[1641443247005,4.0,149.11,149.0,38.73167234]
[1641443247405,9.243,149.12,149.0,38.73167234]
[1641443247707,4.0,149.11,149.0,38.73167234]
[1641443247906,4.0,149.11,149.0,27.66479]
[1641443248506,36.90779,149.12,149.0,27.66479]
[1641443250007,32.90779,149.12,149.0,27.66479]
[1641443250508,4.0,149.11,149.0,27.66479]
[1641443250912,7.42067877,149.11,149.01,1.31893455]
[1641443251311,4.0,149.1,149.01,1.31893455]
[1641443251612,7.42067877,149.1,149.01,1.31893455]
[1641443252211,3.42067877,149.1,149.01,1.31893455]
[1641443252510,3.42067877,149.1,149.02,3.9999]
[1641443252710,3.42067877,149.1,149.06,20.0]
[1641443252912,106.71147996,149.15,149.06,20.0]
[1641443253110,37.87827996,149.15,149.06,20.0]
[1641443253516,37.87827996,149.15,149.04,6.69814796]
[1641443254013,37.87827996,149.15,149.09,27.66479]
[1641443254210,4.0,149.17,149.09,27.66479]
[1641443254412,4.0,149.14,149.07,28.98372455]
[1641443254611,4.0,149.13,149.07,28.98372455]
[1641443254910,4.0,149.13,149.07,1.31893455]
[1641443255913,4.0,149.13,149.08,1.31893455]
[1641443256314,4.0,149.14,149.08,1.31893455]
[1641443256614,4.0,149.17,149.08,1.31893455]
[1641443256813,65.54306996,149.18,149.08,21.31893455]
[1641443257014,37.87827996,149.18,149.08,21.31893455]
[1641443257213,3.41949485,149.13,149.08,23.9999]
[1641443257412,3.41949485,149.13,149.08,20.0]
[1641443258014,3.41949485,149.13,149.11,27.66479]
[1641443258215,3.41949485,149.19,149.11,27.66479]
[1641443259017,3.41949485,149.19,149.11,47.66479]
[1641443259223,3.41949485,149.19,149.11,51.66469]
[1641443259417,3.41949485,149.21,149.12,5.31883455]
[1641443259618,3.41949485,149.21,149.18,20.0]
[1641443259817,3.41949485,149.21,149.18,5.476]
[1641443260018,3.41949485,149.21,149.2,27.66479]
[1641443260318,3.41949485,149.21,149.19,27.66479]
[1641443260519,42.61385116,149.22,149.19,28.98372455]
[1641443260717,4.7355712,149.22,149.19,28.98372455]
[1641443261318,4.7355712,149.22,149.14,6.67636207]
[1641443261517,10.7555712,149.22,149.14,6.67636207]
[1641443261716,10.02,149.22,149.2,4.73616161]
[1641443261919,4.0,149.21,149.08,56.84591721]
[1641443262118,4.0,149.19,149.08,84.51070721]
[1641443262317,9.383,149.19,149.08,84.51070721]
[1641443262718,16.08204539,149.19,149.08,84.51070721]
[1641443262917,12.08204539,149.19,149.08,45.4036851]
[1641443263120,16.08204539,149.19,149.08,45.4036851]
[1641443263318,4.0,149.18,149.08,45.4036851]
[1641443263819,4.0,149.17,149.09,6.6756228]
[1641443264020,27.66479,149.16,149.09,6.6756228]
[1641443264220,4.0,149.14,149.09,6.6756228]
[1641443264422,4.0,149.12,149.09,6.6756228]
[1641443264619,4.794,149.12,149.09,5.1417228]
[1641443264821,8.794,149.12,149.09,5.1417228]
[1641443265223,4.794,149.12,149.07,5.1417228]
[1641443265620,22.96676368,149.15,149.07,5.1417228]
[1641443265820,4.0,149.14,149.07,5.1417228]
[1641443266022,22.96676368,149.15,149.04,11.06498567]
[1641443266222,12.26592272,149.15,149.03,27.66479]
[1641443266621,12.26592272,149.15,149.03,47.66479]
[1641443266834,12.26592272,149.15,149.03,27.66479]
[1641443267423,12.26592272,149.15,149.04,11.06498567]
[1641443268623,4.0,149.14,149.03,38.72977567]
[1641443269429,12.26592272,149.15,149.03,38.72977567]
[1641443269430,4.0,149.12,149.03,38.72977567]
[1641443269628,9.563,149.12,149.03,38.72977567]
[1641443270026,33.22779,149.12,149.03,38.72977567]
[1641443270426,4.0,149.11,149.03,11.06498567]
[1641443270626,4.0,149.08,149.03,11.06498567]
[1641443270927,4.668,149.08,148.99,27.66479]
[1641443271727,4.0,149.04,148.99,27.66479]
[1641443271927,8.668,149.08,148.99,27.66479]
[1641443272229,65.0663,149.11,149.0,3.9999]
[1641443272429,65.0663,149.11,148.99,51.66469]
[1641443272627,65.0663,149.11,148.99,27.66479]
[1641443272827,65.0663,149.11,148.99,47.66479]
[1641443273027,65.0663,149.11,148.99,27.66479]
[1641443273233,65.0663,149.11,149.0,11.06555894]
[1641443273428,69.0663,149.11,149.0,11.06555894]
[1641443273628,4.0,149.08,149.0,11.06555894]
[1641443273831,4.511,149.08,149.0,11.06555894]
[1641443274028,32.17579,149.08,149.0,11.06555894]
[1641443274229,32.17579,149.08,148.99,27.66479]
[1641443274429,36.17579,149.08,148.99,27.66479]
[1641443275630,36.17579,149.08,149.04,14.22094634]
[1641443276230,32.17579,149.08,149.04,14.22094634]
[1641443276430,6.70308677,149.1,149.03,14.22094634]
[1641443277333,6.70308677,149.1,149.04,14.22094634]
[1641443278733,10.70308677,149.1,149.04,14.22094634]
[1641443279032,4.0,149.08,149.04,14.22094634]
[1641443279233,4.542,149.08,149.04,14.22094634]
[1641443279433,8.542,149.08,149.04,14.22094634]
[1641443279633,4.0,149.05,149.03,14.22094634]
[1641443279835,9.186,149.05,148.99,27.66479]
[1641443280033,4.0,149.03,148.99,27.66479]
[1641443280434,10.70578374,149.04,148.99,27.66479]
[1641443280632,6.70578374,149.04,148.99,27.66479]
[1641443281435,10.70578374,149.04,148.99,27.66479]
[1641443283536,4.0,149.03,148.99,27.66479]
[1641443283736,27.66479,149.05,148.99,27.66479]
[1641443283938,6.70465974,149.07,148.99,27.66479]
[1641443285842,6.70465974,149.07,149.0,6.67344165]
[1641443287444,27.66479,149.08,149.0,6.67344165]
[1641443291150,4.0,149.05,149.0,6.67344165]
[1641443291351,6.239,149.05,149.0,6.67344165]
[1641443291551,4.0,149.03,149.0,6.67344165]
[1641443292155,4.0,149.04,149.0,6.67344165]
[1641443292352,4.0,149.04,148.99,27.66479]
[1641443292854,4.0,149.03,148.99,27.66479]
[1641443293456,4.0,149.02,148.99,27.66479]
[1641443293654,4.0,149.0,148.85,126.03440042]
[1641443293855,4.0,148.95,148.85,74.74768321]
[1641443294155,5.373,148.95,148.85,74.74768321]
[1641443294355,33.03779,148.95,148.85,102.41247321]
[1641443295060,33.03779,148.95,148.86,6.67368044]
[1641443295264,33.03779,148.95,148.87,56.84591721]
[1641443297564,27.66479,148.98,148.88,3.9999]
[1641443297764,233.75017786,149.14,148.93,3.9999]
[1641443297765,44.58361405,149.05,148.93,3.9999]
[1641443298067,44.58361405,149.05,148.93,4.912]
[1641443298467,27.66479,149.03,148.93,4.912]
[1641443298866,27.66479,149.03,148.92,34.36832612]
[1641443299166,27.66479,149.06,148.92,58.36822612]
[1641443299365,27.66479,149.06,148.93,3.9999]
[1641443299566,27.66479,149.06,148.92,34.36832612]
[1641443299867,36.49079,149.06,148.93,6.67368044]